fUST/lending_fUST_20240917
["ID","MTS","AMOUNT","RATE_DAILY","PERIOD"]
[338339233,1726515039586,-3000.0,0.0001904,2]
[338339234,1726515039596,-1485.83689661,0.0001904,2]
[338339235,1726515039606,-3000.0,0.0001905,2]
[338339236,1726515039614,-3000.0,0.0001906,2]
[338339237,1726515039624,-3000.0,0.0001907,2]
[338339238,1726515039633,-500.0,0.00019073,2]
[338339239,1726515039642,-500.0,0.00019073,2]
[338339240,1726515039653,-3000.0,0.0001908,2]
[338339241,1726515039663,-3000.0,0.0001909,2]
[338339242,1726515039672,-500.0,0.00019099,2]
[338339243,1726515039682,-416.95554288,0.00019099,2]
[338339244,1726515039692,-500.0,0.00019099,2]
[338339245,1726515039701,-500.0,0.00019099,2]
[338339246,1726515039711,-500.0,0.00019099,2]
[338339247,1726515039720,-369.18030217,0.00019099,2]
[338339248,1726515039729,-500.0,0.00019099,2]
[338339249,1726515039741,-642.58619517,0.00019099,2]
[338339250,1726515039751,-500.0,0.00019099,2]
[338339251,1726515039762,-579.46994863,0.00019099,2]
[338339252,1726515039771,-369.20635158,0.00019099,2]
[338339253,1726515039781,-500.0,0.00019099,2]
[338339254,1726515039791,-500.0,0.00019099,2]
[338339255,1726515039800,-500.0,0.00019099,2]
[338339256,1726515039809,-500.0,0.00019099,2]
[338339257,1726515039819,-500.0,0.00019099,2]
[338339258,1726515039828,-500.0,0.00019099,2]
[338339259,1726515039838,-500.0,0.00019099,2]
[338339260,1726515039847,-500.0,0.00019099,2]
[338339261,1726515039856,-500.0,0.00019099,2]
[338339262,1726515039866,-500.0,0.00019099,2]
[338339263,1726515039876,-500.0,0.00019099,2]
[338339264,1726515039886,-500.0,0.00019099,2]
[338339265,1726515039896,-500.0,0.00019099,2]
[338339266,1726515039905,-500.0,0.00019099,2]
[338339267,1726515039915,-500.0,0.00019099,2]
[338339270,1726515039925,-600.0,0.00019099,2]
[338339272,1726515039934,-500.0,0.00019099,2]
[338339274,1726515039944,-500.0,0.00019099,2]
[338339275,1726515039954,-500.0,0.00019099,2]
[338339276,1726515039964,-500.0,0.00019099,2]
[338339277,1726515039973,-500.0,0.00019099,2]
[338339278,1726515039984,-3000.0,0.000191,2]
[338339279,1726515039999,-76518.4761719,0.000191,3]
[338339280,1726515040009,-1940.98462855,0.000191,3]
[338339281,1726515040019,-3000.0,0.0001911,2]
[338339282,1726515040030,-76518.4761719,0.0001911,3]
[338339283,1726515040040,-1940.98462855,0.0001911,3]
[338339284,1726515040050,-4612.824503,0.0001912,2]
[338339285,1726515040060,-151.0,0.0001913,2]
[338339286,1726515040070,-751.558477,0.0001913,2]
[338339287,1726515040080,-751.558477,0.0001913,2]
[338339289,1726515040090,-1485.83689661,0.0001916,2]
[338339291,1726515040099,-151.0,0.00019178,2]
[338339293,1726515040110,-751.558477,0.00019178,2]
[338339295,1726515040123,-751.558477,0.00019178,2]
[338339297,1726515040133,-151.0,0.00019178,2]
[338339299,1726515040142,-252.662041,0.00019178,2]
[338339300,1726515040152,-5692.329598,0.00019178,2]
[338339302,1726515040162,-167.030778,0.00019178,2]
[338339303,1726515040172,-150.112233,0.000192,2]
[338339305,1726515040182,-6609.74874633,0.00019266,2]
[338339307,1726515040192,-1485.83689661,0.0001928,2]
[338339308,1726515040202,-500.0,0.00019285,2]
[338339309,1726515040212,-150.112233,0.000193,2]
[338339310,1726515040221,-150.112233,0.000193,2]
[338339311,1726515040231,-150.112233,0.000194,2]
[338339312,1726515040245,-150.112233,0.000194,2]
[338339313,1726515040256,-2121.25105813,0.000194,2]
[338339314,1726515040265,-1485.83689661,0.000194,2]
[338339315,1726515040275,-157.24516602,0.00019453,2]
[338339316,1726515040285,-76518.4761719,0.00019454,3]
[338339317,1726515040294,-1940.98462855,0.00019454,3]
[338339318,1726515040305,-1940.98462855,0.00019464,3]
[338339319,1726515040315,-500.0,0.00019473,2]
[338339320,1726515040326,-500.0,0.00019473,2]
[338339321,1726515040337,-500.0,0.00019473,2]
[338339322,1726515040348,-500.0,0.00019473,2]
[338339323,1726515040359,-545.87309182,0.00019473,2]
[338339324,1726515040369,-500.0,0.00019473,2]
[338339325,1726515040392,-500.0,0.00019473,2]
[338339326,1726515040401,-500.0,0.00019473,2]
[338339327,1726515040412,-239.0,0.00019474,2]
[338339328,1726515040422,-27173.7847997,0.0001949,3]
[338339329,1726515040432,-23183.91472459,0.000195,5]
[338339330,1726515040442,-67963.38,0.000195,2]
[338339331,1726515040452,-3633.68,0.000195,2]
[338339332,1726515040463,-9461.93,0.000195,2]
[338339333,1726515040473,-116458.53,0.000195,2]
[338339334,1726515040483,-208031.1353165,0.000195,2]
[338339351,1726515043308,-150.0,0.00018899,2]
[338339352,1726515043327,-89132.07109273,0.000195,2]
[338339362,1726515161078,-300.0,0.00017755,2]
[338339363,1726515161101,-300.0,0.00017755,2]
[338339364,1726515161125,-24400.0,0.00017756,2]
[338339399,1726515499500,235.730425,0.00013699,2]
[338339465,1726516028158,-186.593077,0.00015762,2]
[338339466,1726516028180,-206.56800271,0.00016716,2]
[338339477,1726516128055,239.055897,0.00013699,2]
[338339484,1726516173211,-300.0,0.00016577,2]
[338339485,1726516173234,-24900.0,0.00016578,2]
[338339486,1726516173257,-287.56225959,0.00016716,2]
[338339487,1726516173281,-171.575709,0.00017197,2]
[338339488,1726516173301,-1029.05311966,0.00017228,2]
[338339508,1726516232280,-283.43650347,0.00017266,2]
[338339509,1726516232335,-382.91512159,0.00017266,2]
[338339510,1726516232350,-65.17712484,0.00017266,2]
[338339511,1726516232360,-164.113666,0.00017345,2]
[338339512,1726516232370,-171.575709,0.00017421,2]
[338339513,1726516232380,-1000.0,0.0001756,2]
[338339514,1726516232390,-171.575709,0.00017645,2]
[338339515,1726516232400,-192.79035955,0.00017656,2]
[338339516,1726516232410,-171.575709,0.00017869,2]
[338339517,1726516232418,-3882.32912585,0.0001799,2]
[338339518,1726516232429,-1000.0,0.00018,18]
[338339519,1726516232439,-640.45265598,0.0001809,2]
[338339520,1726516232449,-171.575709,0.00018093,2]
[338339521,1726516232459,-300.0,0.0001849,2]
[338339522,1726516232469,-300.0,0.0001849,2]
[338339523,1726516232480,-6322.79847141,0.00018491,2]
[338339524,1726516232489,-6322.79847141,0.00018673,2]
[338339525,1726516232499,-150.0,0.000188,2]
[338339526,1726516232509,-545.87309182,0.00018967,2]
[338339527,1726516232519,-487.12598268,0.00018967,2]
[338339528,1726516233817,150.5844684,0.00017245,2]
[338339558,1726516238522,-12.87401732,0.00018967,2]
[338339559,1726516238535,-16.99045379,0.00018994,2]
[338339560,1726516238563,-604.03217901,0.00018994,2]
[338339561,1726516238573,-1000.0,0.00019,19]
[338339562,1726516238583,-500.0,0.00019,2]
[338339563,1726516238592,-6322.79847141,0.00019061,2]
[338339564,1726516238602,-1000.0,0.00019178,2]
[338339565,1726516238611,-161.4747233,0.00019178,2]
[338339566,1726516238623,-160.983253,0.00019178,2]
[338339567,1726516238632,-3794.886399,0.00019178,2]
[338339568,1726516238642,-150.58446839,0.00019185,2]
[338339569,1726516238652,-6322.79847141,0.00019244,2]
[338339570,1726516238663,-500.0,0.00019285,2]
[338339571,1726516238672,-524.0,0.00019479,2]
[338339573,1726516238681,-150.0,0.00019479,2]
[338339574,1726516238690,-239.0,0.00019479,2]
[338339575,1726516238701,-169.432,0.00019479,2]
[338339576,1726516238711,-150.0,0.00019479,2]
[338339577,1726516238721,-591.886,0.00019479,2]
[338339578,1726516238730,-500.0,0.00019479,2]
[338339579,1726516238740,-363.1586104,0.00019479,2]
[338339580,1726516238750,-355.38677287,0.00019479,2]
[338339581,1726516238760,-500.0,0.00019479,2]
[338339582,1726516238770,-500.0,0.00019479,2]
[338339583,1726516238779,-359.62463855,0.00019479,2]
[338339584,1726516238787,-500.0,0.00019479,2]
[338339585,1726516238797,-229.82589671,0.00019479,2]
[338339586,1726516238806,-500.0,0.00019479,2]
[338339587,1726516238815,-500.0,0.00019479,2]
[338339588,1726516238824,-500.0,0.00019479,2]
[338339589,1726516238834,-500.0,0.00019479,2]
[338339590,1726516238843,-500.0,0.00019479,2]
[338339591,1726516238852,-500.0,0.00019479,2]
[338339592,1726516238861,-500.0,0.00019479,2]
[338339593,1726516238870,-500.0,0.00019479,2]
[338339594,1726516238880,-500.0,0.00019479,2]
[338339595,1726516238889,-348.31490902,0.00019479,2]
[338339596,1726516238898,-500.0,0.00019479,2]
[338339597,1726516238909,-73762.5318011,0.0001948,3]
[338339598,1726516238918,-2492.65509725,0.0001948,3]
[338339599,1726516238927,-73762.5318011,0.0001949,3]
[338339600,1726516238937,-2492.65509725,0.0001949,3]
[338339601,1726516238946,-214.0,0.000195,10]
[338339602,1726516238956,-151.0,0.000195,2]
[338339603,1726516238967,-154.154453,0.000195,2]
[338339604,1726516238976,-151.0,0.000195,2]
[338339605,1726516238987,-151.0,0.000195,2]
[338339606,1726516238996,-500.0,0.000195,10]
[338339607,1726516239007,-800.0,0.000195,10]
[338339608,1726516239016,-800.0,0.000195,10]
[338339609,1726516239026,-800.0,0.000195,10]
[338339610,1726516239035,-800.0,0.000195,10]
[338339611,1726516239046,-500.0,0.000195,10]
[338339612,1726516239056,-800.0,0.000195,10]
[338339613,1726516239066,-500.0,0.000195,10]
[338339614,1726516239075,-800.0,0.000195,10]
[338339615,1726516239086,-500.0,0.000195,10]
[338339616,1726516239095,-800.0,0.000195,10]
[338339618,1726516239105,-500.0,0.000195,10]
[338339620,1726516239114,-800.0,0.000195,10]
[338339622,1726516239126,-500.0,0.000195,10]
[338339623,1726516239136,-800.0,0.000195,10]
[338339625,1726516239145,-500.0,0.000195,10]
[338339626,1726516239154,-800.0,0.000195,10]
[338339627,1726516239163,-500.0,0.000195,10]
[338339628,1726516239172,-500.0,0.000195,10]
[338339629,1726516239182,-800.0,0.000195,10]
[338339630,1726516239191,-500.0,0.000195,10]
[338339631,1726516239202,-500.0,0.000195,10]
[338339632,1726516239211,-800.0,0.000195,10]
[338339633,1726516239220,-800.0,0.000195,10]
[338339634,1726516239230,-1000.0,0.000195,10]
[338339635,1726516239240,-500.0,0.000195,10]
[338339636,1726516239250,-500.0,0.000195,10]
[338339637,1726516239260,-500.0,0.000195,10]
[338339638,1726516239269,-500.0,0.000195,10]
[338339639,1726516239279,-500.0,0.000195,10]
[338339640,1726516239288,-1000.0,0.000195,10]
[338339641,1726516239298,-1000.0,0.000195,10]
[338339642,1726516239307,-1000.0,0.000195,10]
[338339643,1726516239316,-1000.0,0.000195,10]
[338339644,1726516239326,-1000.0,0.000195,10]
[338339645,1726516239335,-600.0,0.000195,10]
[338339646,1726516239344,-1000.0,0.000195,10]
[338339647,1726516239354,-600.0,0.000195,10]
[338339648,1726516239363,-1000.0,0.000195,10]
[338339649,1726516239373,-600.0,0.000195,10]
[338339650,1726516239382,-600.0,0.000195,10]
[338339651,1726516239391,-1000.0,0.000195,10]
[338339652,1726516239400,-1000.0,0.000195,10]
[338339653,1726516239411,-1000.0,0.000195,10]
[338339654,1726516239420,-600.0,0.000195,10]
[338339655,1726516239430,-600.0,0.000195,10]
[338339656,1726516239440,-1000.0,0.000195,10]
[338339657,1726516239449,-1000.0,0.000195,10]
[338339658,1726516239460,-600.0,0.000195,10]
[338339659,1726516239470,-1000.0,0.000195,10]
[338339660,1726516239479,-600.0,0.000195,10]
[338339661,1726516239488,-600.0,0.000195,10]
[338339662,1726516239498,-600.0,0.000195,10]
[338339663,1726516239507,-600.0,0.000195,10]
[338339664,1726516239517,-1000.0,0.000195,10]
[338339665,1726516239526,-848.187424,0.000195,2]
[338339666,1726516239535,-848.187424,0.000195,2]
[338339667,1726516239544,-500.0,0.000195,10]
[338339668,1726516239554,-500.0,0.000195,10]
[338339669,1726516239564,-500.0,0.000195,10]
[338339670,1726516239573,-500.0,0.000195,10]
[338339671,1726516239583,-337.7,0.0001951,2]
[338339672,1726516239592,-167.0,0.0001955,2]
[338339673,1726516239601,-337.7,0.00019728,2]
[338339674,1726516239611,-500.0,0.00019785,2]
[338339675,1726516239620,-7284.39399994,0.000198,2]
[338339676,1726516239629,-1000.0,0.00019859,2]
[338339677,1726516239638,-3794.886399,0.00019863,2]
[338339678,1726516239648,-150.112233,0.000199,2]
[338339679,1726516239657,-500.0,0.00019937,2]
[338339680,1726516239666,-291.86888001,0.00019937,2]
[338339681,1726516239675,-500.0,0.00019937,2]
[338339682,1726516239684,-500.0,0.00019937,2]
[338339683,1726516239693,-500.0,0.00019937,2]
[338339684,1726516239703,-500.0,0.00019937,2]
[338339685,1726516239712,-223.70365825,0.00019937,2]
[338339686,1726516239722,-243.90366096,0.00019937,2]
[338339687,1726516239731,-500.0,0.00019937,2]
[338339688,1726516239741,-500.0,0.00019937,2]
[338339689,1726516239750,-458.95072738,0.00019937,2]
[338339690,1726516239759,-500.0,0.00019937,2]
[338339692,1726516239769,-176.54282356,0.00019937,2]
[338339693,1726516239778,-500.0,0.00019937,2]
[338339694,1726516239787,-500.0,0.00019937,2]
[338339695,1726516239797,-500.0,0.00019937,2]
[338339696,1726516239807,-500.0,0.00019937,2]
[338339697,1726516239816,-500.0,0.00019937,2]
[338339699,1726516239826,-500.0,0.00019937,2]
[338339700,1726516239835,-500.0,0.00019937,2]
[338339701,1726516239845,-500.0,0.00019937,2]
[338339702,1726516239854,-500.0,0.00019937,2]
[338339703,1726516239863,-500.0,0.00019937,2]
[338339704,1726516239872,-500.0,0.00019937,2]
[338339705,1726516239880,-500.0,0.00019937,2]
[338339706,1726516239890,-500.0,0.00019937,2]
[338339707,1726516239899,-360.85960924,0.00019937,2]
[338339724,1726516240091,-73762.5318011,0.00019938,3]
[338339726,1726516240101,-2492.65509725,0.00019938,3]
[338339728,1726516240111,-337.7,0.00019947,2]
[338339730,1726516240122,-476.28457062,0.00019973,2]
[338339732,1726516240132,-500.0,0.00019973,2]
[338339733,1726516240142,-151.0,0.0001998,2]
[338339735,1726516240151,-300.12116,0.0001998,2]
[338339737,1726516240161,-73762.5318011,0.0001998,3]
[338339739,1726516240171,-2492.65509725,0.0001998,3]
[338339741,1726516240182,-55944.00578028,0.0001999,3]
[338339750,1726516240667,-17818.52602082,0.0001999,3]
[338339751,1726516240677,-4985.3101945,0.0001999,3]
[338339752,1726516240686,-157.24516602,0.0001999,2]
[338339753,1726516240696,-156.70804237,0.0002,2]
[338339754,1726516240713,-1357.25195763,0.0002,2]
[338339755,1726516240722,-3493.38691463,0.0002,2]
[338339756,1726516240732,-1000.0,0.0002,20]
[338339757,1726516240741,-150.112233,0.0002,3]
[338339758,1726516240750,-150.112233,0.0002,2]
[338339759,1726516240759,-151.15238579,0.0002,2]
[338339760,1726516240769,-11224.1871214,0.0002,2]
[338339761,1726516240780,-1657.37973848,0.0002,2]
[338339785,1726516243334,-500.0,0.00019473,2]
[338339786,1726516243344,-46.96432288,0.00019473,2]
[338339787,1726516243390,-453.03567712,0.00019473,2]
[338339788,1726516243399,-35056.56748543,0.0002,2]
[338339789,1726516243409,-2160.85922,0.000201,2]
[338339790,1726516243418,-150.112233,0.000201,4]
[338339791,1726516243428,-150.112233,0.000201,3]
[338339792,1726516243437,-3882.32912582,0.00020102,2]
[338339794,1726516243447,-500.0,0.00020136,2]
[338339796,1726516243456,-420.0,0.00020165,2]
[338339797,1726516243466,-337.7,0.00020166,2]
[338339798,1726516243475,-239.055897,0.00020187,2]
[338339799,1726516243484,-150.112233,0.000202,4]
[338339800,1726516243493,-150.112233,0.000202,2]
[338339801,1726516243503,-2492.65509725,0.0002027,3]
[338339802,1726516243513,-500.0,0.00020273,2]
[338339803,1726516243522,-151.4479808,0.00020273,2]
[338339804,1726516243531,-500.0,0.00020274,2]
[338339805,1726516243541,-500.0,0.00020274,2]
[338339806,1726516243551,-2492.65509725,0.0002028,3]
[338339807,1726516243560,-508.704984,0.00020285,2]
[338339808,1726516243571,-4985.3101945,0.0002029,3]
[338339809,1726516243580,-184.0,0.000203,2]
[338339810,1726516243589,-33317.30140156,0.000203,2]
[338339811,1726516243602,-1150.23061612,0.000203,2]
[338339812,1726516243614,-33495.84798232,0.000203,2]
[338339813,1726516243623,-300.0,0.000203,8]
[338339814,1726516243632,-500.0,0.000203,2]
[338339815,1726516243642,-150.112233,0.000203,5]
[338339816,1726516243651,-150.112233,0.000203,3]
[338339817,1726516243661,-1909.12595238,0.000203,2]
[338339818,1726516243670,-238.471071,0.000203,2]
[338339819,1726516243679,-150.0,0.000203,2]
[338339820,1726516243688,-420.0,0.00020339,2]
[338339821,1726516243697,-2492.65509725,0.00020349,3]
[338339822,1726516243708,-2160.85922,0.00020351,2]
[338339823,1726516243717,-4985.3101945,0.00020359,3]
[338339824,1726516243726,-7477.96529175,0.00020367,3]
[338339825,1726516243736,-94819.92419511,0.00020369,2]
[338339826,1726516243745,-500.0,0.00020373,2]
[338339827,1726516243755,-500.0,0.00020373,2]
[338339828,1726516243764,-500.0,0.00020373,2]
[338339829,1726516243774,-500.0,0.00020373,2]
[338339830,1726516243784,-500.0,0.00020373,2]
[338339831,1726516243793,-500.0,0.00020373,2]
[338339832,1726516243802,-500.0,0.00020373,2]
[338339833,1726516243812,-500.0,0.00020373,2]
[338339834,1726516243821,-500.0,0.00020373,2]
[338339835,1726516243830,-500.0,0.00020373,2]
[338339836,1726516243840,-500.0,0.00020373,2]
[338339837,1726516243850,-500.0,0.00020373,2]
[338339838,1726516243861,-150.01,0.00020376,2]
[338339839,1726516243870,-3749.11413205,0.00020376,2]
[338339840,1726516243880,-500.0,0.00020377,2]
[338339841,1726516243890,-500.0,0.00020377,2]
[338339842,1726516243900,-151.0,0.00020377,2]
[338339843,1726516243909,-99008.42101487,0.00020377,2]
[338339844,1726516243918,-151.0,0.00020377,2]
[338339845,1726516243928,-151.0,0.00020377,2]
[338339846,1726516243938,-151.0,0.00020377,2]
[338339847,1726516243948,-848.187424,0.00020377,2]
[338339848,1726516243957,-848.187424,0.00020377,2]
[338339849,1726516243966,-151.0,0.00020377,2]
[338339850,1726516243976,-164.268102,0.00020377,2]
[338339851,1726516243986,-164.268102,0.00020377,2]
[338339852,1726516243995,-151.0,0.00020377,2]
[338339853,1726516244004,-151.0,0.00020377,2]
[338339854,1726516244013,-151.0,0.00020377,2]
[338339855,1726516244022,-890.376021,0.00020377,2]
[338339856,1726516244031,-890.376021,0.00020377,2]
[338339857,1726516244042,-151.0,0.00020377,2]
[338339858,1726516244054,-1232.087308,0.00020377,2]
[338339859,1726516244063,-1232.087308,0.00020377,2]
[338339860,1726516244075,-567.288719,0.00020377,2]
[338339861,1726516244084,-567.288719,0.00020377,2]
[338339862,1726516244094,-337.7,0.00020385,2]
[338339863,1726516244103,-9970.620389,0.0002039,3]
[338339864,1726516244113,-160.0,0.00020399,2]
[338339866,1726516244122,-23183.91472459,0.000204,5]
[338339868,1726516244132,-1576.8530707,0.000204,5]
[338339870,1726516244141,-151.0,0.000204,2]
[338339872,1726516244152,-151.0,0.000204,2]
[338339873,1726516244161,-151.0,0.000204,2]
[338339874,1726516244171,-151.0,0.000204,2]
[338339875,1726516244181,-151.0,0.000204,2]
[338339876,1726516244191,-3633.68,0.000204,2]
[338339877,1726516244201,-9461.93,0.000204,2]
[338339878,1726516244216,-116458.53,0.000204,2]
[338339879,1726516244227,-521060.06,0.000204,2]
[338339880,1726516244236,-151.0,0.000204,2]
[338339881,1726516244246,-151.882077,0.000204,2]
[338339882,1726516244256,-151.0,0.000204,2]
[338339883,1726516244265,-151.0,0.000204,2]
[338339884,1726516244275,-151.882077,0.000204,2]
[338339885,1726516244284,-151.0,0.000204,2]
[338339886,1726516244294,-151.0,0.000204,2]
[338339887,1726516244303,-151.0,0.000204,2]
[338339888,1726516244312,-287.482298,0.000204,2]
[338339889,1726516244322,-151.0,0.000204,2]
[338339890,1726516244331,-151.0,0.000204,2]
[338339891,1726516244340,-151.0,0.000204,2]
[338339892,1726516244350,-151.0,0.000204,2]
[338339893,1726516244360,-479.675375,0.000204,2]
[338339894,1726516244370,-479.675375,0.000204,2]
[338339895,1726516244379,-479.675375,0.000204,2]
[338339896,1726516244389,-479.675375,0.000204,2]
[338339897,1726516244398,-151.0,0.000204,2]
[338339898,1726516244407,-151.0,0.000204,2]
[338339899,1726516244417,-216.770763,0.000204,2]
[338339900,1726516244428,-216.770763,0.000204,2]
[338339901,1726516244438,-216.770763,0.000204,2]
[338339902,1726516244447,-216.770763,0.000204,2]
[338339903,1726516244462,-166.700162,0.000204,2]
[338339904,1726516244471,-166.700162,0.000204,2]
[338339905,1726516244480,-205.817021,0.000204,2]
[338339906,1726516244490,-205.817021,0.000204,2]
[338339907,1726516244499,-166.700162,0.000204,2]
[338339908,1726516244508,-166.700162,0.000204,2]
[338339909,1726516244517,-205.817021,0.000204,2]
[338339910,1726516244526,-205.817021,0.000204,2]
[338339911,1726516244536,-224.383354,0.000204,2]
[338339912,1726516244547,-151.0,0.000204,2]
[338339913,1726516244558,-151.0,0.000204,2]
[338339914,1726516244567,-2243.764071,0.000204,2]
[338339915,1726516244577,-2243.764071,0.000204,2]
[338339916,1726516244585,-2243.764071,0.000204,2]
[338339917,1726516244594,-2243.764071,0.000204,2]
[338339918,1726516244604,-328.46616,0.000204,2]
[338339919,1726516244613,-151.0,0.000204,2]
[338339920,1726516244622,-179.660996,0.000204,2]
[338339921,1726516244631,-328.46616,0.000204,2]
[338339922,1726516244641,-179.660996,0.000204,2]
[338339923,1726516244813,-151.0,0.000204,2]
[338339924,1726516244822,-151.0,0.000204,2]
[338339925,1726516244831,-150.112233,0.000204,4]
[338339926,1726516244842,-151.0,0.000204,2]
[338339927,1726516244851,-1520.386912,0.000204,2]
[338339928,1726516244862,-151.0,0.000204,2]
[338339929,1726516244871,-1520.386912,0.000204,2]
[338339930,1726516244881,-151.0,0.000204,2]
[338339931,1726516244890,-151.0,0.000204,2]
[338339932,1726516244899,-243.314955,0.000204,2]
[338339933,1726516244908,-243.314955,0.000204,2]
[338339934,1726516244917,-226.974859,0.000204,2]
[338339935,1726516244926,-1050.408763,0.000204,2]
[338339936,1726516244936,-160.248887,0.000204,2]
[338339937,1726516244946,-1050.408763,0.000204,2]
[338339938,1726516244956,-160.248887,0.000204,2]
[338339939,1726516244966,-1267.150815,0.000204,2]
[338339940,1726516244975,-1267.150815,0.000204,2]
[338339941,1726516244984,-329.938109,0.000204,2]
[338339942,1726516244993,-329.938109,0.000204,2]
[338339943,1726516245002,-151.0,0.000204,2]
[338339944,1726516245011,-1056.480414,0.000204,2]
[338339945,1726516245021,-1056.480414,0.000204,2]
[338339946,1726516245032,-1143.860245,0.000204,2]
[338339947,1726516245041,-1143.860245,0.000204,2]
[338339948,1726516245051,-1143.860245,0.000204,2]
[338339949,1726516245061,-1143.860245,0.000204,2]
[338339950,1726516245071,-4321.253403,0.000204,2]
[338339951,1726516245080,-4321.253403,0.000204,2]
[338339952,1726516245089,-4321.253403,0.000204,2]
[338339953,1726516245100,-4321.253403,0.000204,2]
[338339954,1726516245109,-412.981418,0.000204,2]
[338339955,1726516245118,-412.981418,0.000204,2]
[338339956,1726516245128,-412.981418,0.000204,2]
[338339957,1726516245138,-412.981418,0.000204,2]
[338339958,1726516245148,-151.0,0.000204,2]
[338339959,1726516245157,-151.0,0.000204,2]
[338339960,1726516245166,-151.0,0.000204,2]
[338339961,1726516245177,-151.0,0.000204,2]
[338339962,1726516245186,-151.0,0.000204,2]
[338339963,1726516245195,-151.0,0.000204,2]
[338339964,1726516245205,-295.166647,0.000204,2]
[338339965,1726516245217,-295.166647,0.000204,2]
[338339966,1726516245227,-295.166647,0.000204,2]
[338339967,1726516245236,-295.166647,0.000204,2]
[338339968,1726516245246,-1713.723813,0.000204,2]
[338339969,1726516245255,-1713.723813,0.000204,2]
[338339970,1726516245265,-422.637982,0.000204,2]
[338339971,1726516245275,-422.637982,0.000204,2]
[338339972,1726516245284,-1713.723813,0.000204,2]
[338339973,1726516245294,-1713.723813,0.000204,2]
[338339974,1726516245303,-422.637982,0.000204,2]
[338339975,1726516245315,-422.637982,0.000204,2]
[338339976,1726516245324,-151.0,0.000204,2]
[338339977,1726516245333,-164.268102,0.000204,2]
[338339978,1726516245342,-164.268102,0.000204,2]
[338339979,1726516245353,-151.0,0.000204,2]
[338339980,1726516245362,-151.0,0.000204,2]
[338339981,1726516245372,-151.0,0.000204,2]
[338339982,1726516245381,-151.0,0.000204,2]
[338339983,1726516245391,-222.34261,0.000204,2]
[338339984,1726516245400,-151.0,0.000204,2]
[338339985,1726516245409,-890.376021,0.000204,2]
[338339986,1726516245418,-890.376021,0.000204,2]
[338339987,1726516245428,-151.0,0.000204,2]
[338339988,1726516245438,-151.0,0.000204,2]
[338339989,1726516245447,-151.0,0.000204,2]
[338339990,1726516245457,-1232.087308,0.000204,2]
[338339991,1726516245466,-1232.087308,0.000204,2]
[338339992,1726516245475,-151.0,0.000204,2]
[338339993,1726516245485,-151.0,0.000204,2]
[338339994,1726516245494,-151.0,0.000204,2]
[338339995,1726516245503,-567.288719,0.000204,2]
[338339996,1726516245512,-281.345953,0.000204,2]
[338339997,1726516245521,-151.651291,0.000204,2]
[338339998,1726516245531,-567.288719,0.000204,2]
[338339999,1726516245540,-2002.061741,0.000204,2]
[338340000,1726516245549,-2002.061741,0.000204,2]
[338340001,1726516245558,-2002.061741,0.000204,2]